lending/lending_fUSD_20251106
["ID","MTS","AMOUNT","RATE_DAILY","PERIOD"]
[393313032,1762453839103,-150.0,0.00017632,2]
[393313035,1762453839114,-2410.88,0.00017641,2]
[393313038,1762453839133,-1205.44,0.00017641,2]
[393313040,1762453839144,-500.0,0.00017643,2]
[393313042,1762453839155,-500.0,0.00017643,2]
[393313044,1762453839165,-549.09,0.00017644,2]
[393313046,1762453839176,-1396.88,0.00017644,2]
[393313048,1762453839186,-698.56,0.00017647,2]
[393313050,1762453839196,-479.88498486,0.00017663,2]
[393313052,1762453839207,-200.0,0.000177,6]
[393313054,1762453839217,-227.63003667,0.00017705,2]
[393313056,1762453839227,-303.18,0.00017706,2]
[393313059,1762453839237,-300.0,0.00017706,2]
[393313061,1762453839248,-150.76,0.00017706,2]
[393313063,1762453839258,-300.0,0.00017706,2]
[393313065,1762453839267,-339.12,0.00017706,2]
[393313067,1762453839276,-150.0,0.00017706,2]
[393313069,1762453839285,-300.0,0.00017706,2]
[393313071,1762453839294,-462.90844525,0.00017707,2]
[393313073,1762453839304,-1063.1084148,0.00017707,2]
[393313075,1762453839313,-1500.0,0.00017729,2]
[393313077,1762453839324,-1500.0,0.00017729,2]
[393313079,1762453839333,-1032.75071884,0.00017746,2]
[393313081,1762453839343,-1500.0,0.00017746,2]
[393313083,1762453839352,-1500.0,0.00017746,2]
[393313085,1762453839362,-535.7809552,0.00017768,2]
[393313087,1762453839371,-500.0,0.00017769,2]
[393313089,1762453839381,-500.0,0.00017769,2]
[393313091,1762453839390,-200.0,0.00017769,2]
[393313093,1762453839399,-150.0,0.00017769,2]
[393313095,1762453839409,-500.0,0.00017769,2]
[393313097,1762453839419,-500.0,0.0001778,2]
[393313099,1762453839428,-500.0,0.0001778,2]
[393313101,1762453839437,-5117.8784276,0.00017789,2]
[393313103,1762453839446,-1500.0,0.00017796,2]
[393313105,1762453839455,-1500.0,0.00017796,2]
[393313107,1762453839465,-5000.0,0.000178,2]
[393313109,1762453839474,-213.98451714,0.000178,2]
[393313111,1762453839485,-2500.0,0.000178,2]
[393313113,1762453839495,-2009.01114328,0.000178,2]
[393313115,1762453839508,-200.0,0.000178,6]
[393313117,1762453839519,-5117.87842755,0.00017801,2]
[393313118,1762453839529,-213.98451709,0.00017811,2]
[393313119,1762453839539,-2009.01114323,0.00017811,2]
[393313120,1762453839549,-5117.87842755,0.00017814,2]
[393313122,1762453839559,-180.026,0.00017816,2]
[393313124,1762453839569,-2361.946,0.00017816,2]
[393313125,1762453839579,-1000.0,0.00017819,2]
[393313127,1762453839589,-213.98451709,0.00017822,2]
[393313129,1762453839599,-2009.01114323,0.00017822,2]
[393313131,1762453839611,-5117.87842755,0.00017826,2]
[393313133,1762453839621,-213.98451709,0.00017833,2]
[393313135,1762453839631,-2009.01114323,0.00017833,2]
[393313137,1762453839640,-5117.87842755,0.00017838,2]
[393313139,1762453839652,-2500.0,0.00017838,3]
[393313140,1762453839662,-213.98451709,0.00017844,2]
[393313142,1762453839672,-2009.01114323,0.00017844,2]
[393313144,1762453839682,-5117.87842755,0.00017851,2]
[393313146,1762453839691,-213.98451709,0.00017856,2]
[393313148,1762453839701,-2009.01114323,0.00017856,2]
[393313150,1762453839711,-162.5612366,0.00017859,2]
[393313152,1762453839721,-5117.87842755,0.00017863,2]
[393313154,1762453839732,-213.98451709,0.00017867,2]
[393313156,1762453839742,-2009.01114323,0.00017867,2]
[393313157,1762453839752,-5117.87842755,0.00017875,2]
[393313159,1762453839762,-213.98451709,0.00017878,2]
[393313160,1762453839772,-2009.01114323,0.00017878,2]
[393313161,1762453839782,-5117.87842755,0.00017888,2]
[393313162,1762453839792,-213.98451709,0.00017889,2]
[393313163,1762453839802,-151.0,0.00017897,2]
[393313164,1762453839813,-500.0,0.00017899,2]
[393313165,1762453839823,-500.0,0.00017899,2]
[393313166,1762453839833,-175.39314765,0.00017899,2]
[393313167,1762453839843,-500.0,0.00017899,2]
[393313168,1762453839853,-500.0,0.00017899,2]
[393313169,1762453839865,-163701.29930629,0.000179,2]
[393313170,1762453839884,-1015.08522254,0.000179,2]
[393313171,1762453839899,-23752.81859599,0.000179,2]
[393313172,1762453839911,-423.82310137,0.000179,2]
[393313176,1762453840313,-477.87911524,0.00017557,2]
[393313177,1762453840322,-2009.01114323,0.00017889,2]
[393313178,1762453840332,-759.61343961,0.000179,2]
[393313179,1762453840438,-159296.08258214,0.000179,2]
[393313180,1762453840452,-12251.56710073,0.000179,2]
[393313181,1762453840468,-1196.6536622,0.000179,2]
[393313182,1762453840479,-4342.95214391,0.000179,2]
[393313183,1762453840490,-53260.10484522,0.000179,2]
[393313184,1762453840500,-1000.0,0.000179,2]
[393313185,1762453840509,-12908.4014,0.000179,2]
[393313186,1762453840519,-171.38085206,0.000179,2]
[393313187,1762453840528,-1000.0,0.000179,2]
[393313188,1762453840537,-808.0,0.000179,6]
[393313189,1762453840547,-213.98451709,0.000179,2]
[393313190,1762453840556,-2860.45114251,0.000179,2]
[393313191,1762453840566,-5117.87842755,0.000179,2]
[393313192,1762453840575,-250.0,0.000179,2]
[393313193,1762453840584,-250.0,0.000179,2]
[393313194,1762453840594,-250.0,0.000179,2]
[393313195,1762453840604,-250.0,0.000179,2]
[393313196,1762453840617,-250.0,0.000179,2]
[393313197,1762453840626,-250.0,0.000179,2]
[393313198,1762453840635,-250.0,0.000179,2]
[393313199,1762453840647,-250.0,0.000179,2]
[393313200,1762453840656,-250.0,0.000179,2]
[393313201,1762453840665,-250.0,0.000179,2]
[393313202,1762453840675,-250.0,0.000179,2]
[393313203,1762453840686,-250.0,0.000179,2]
[393313204,1762453840695,-250.0,0.000179,2]
[393313205,1762453840704,-250.0,0.000179,2]
[393313206,1762453840714,-250.0,0.000179,2]
[393313207,1762453840724,-269.0,0.000179,2]
[393313209,1762453840734,-352.51204801,0.000179,2]
[393313211,1762453840745,-3332.68235117,0.000179,2]
[393313213,1762453840756,-150.81255791,0.000179,3]
[393313215,1762453840767,-500.0,0.00017906,2]
[393313216,1762453840776,-500.0,0.00017906,2]
[393313218,1762453840786,-500.0,0.00017906,2]
[393313220,1762453840797,-500.0,0.00017917,2]
[393313221,1762453840807,-500.0,0.00017917,2]
[393313222,1762453840823,-1680.0,0.00017923,2]
[393313223,1762453840837,-420.0,0.00017923,2]
[393313224,1762453840853,-420.0,0.00017923,2]
[393313225,1762453840865,-300.0,0.0001793,2]
[393313226,1762453840874,-250.0,0.0001793,2]
[393313227,1762453840884,-300.0,0.0001793,2]
[393313228,1762453840894,-300.0,0.0001793,2]
[393313229,1762453840903,-300.0,0.0001793,2]
[393313230,1762453840912,-300.0,0.0001793,2]
[393313231,1762453840921,-355.86717793,0.0001793,2]
[393313232,1762453840931,-195.0,0.0001793,2]
[393313233,1762453840940,-21391.82954433,0.00017946,2]
[393313234,1762453840949,-820.0,0.00017951,2]
[393313235,1762453840959,-1596.0,0.00017951,2]
[393313236,1762453840968,-812.0,0.00017951,2]
[393313237,1762453840977,-1273.0,0.00017951,2]
[393313238,1762453840987,-905.0,0.00017951,2]
[393313239,1762453840996,-1188.0,0.00017951,2]
[393313240,1762453841005,-1315.0,0.00017951,2]
[393313241,1762453841014,-2141.0,0.00017951,2]
[393313242,1762453841024,-6673.309,0.00017951,2]
[393313243,1762453841034,-574.0,0.00017951,2]
[393313244,1762453841043,-500.0,0.00017973,2]
[393313245,1762453841052,-500.0,0.00017973,2]
[393313246,1762453841062,-500.0,0.00017973,2]
[393313247,1762453841071,-500.68961362,0.00017973,2]
[393313248,1762453841080,-500.74497787,0.00017973,2]
[393313249,1762453841090,-500.0,0.00017973,2]
[393313250,1762453841099,-177.37183527,0.00017973,2]
[393313251,1762453841108,-500.0,0.00017973,2]
[393313252,1762453841117,-503.54833867,0.00017973,2]
[393313253,1762453841126,-500.0,0.00017973,2]
[393313254,1762453841136,-500.0,0.00017973,2]
[393313255,1762453841146,-500.0,0.00017973,2]
[393313256,1762453841155,-500.19258661,0.00017973,2]
[393313257,1762453841164,-500.0,0.00017973,2]
[393313258,1762453841173,-500.0,0.00017973,2]
[393313259,1762453841182,-500.0,0.00017973,2]
[393313260,1762453841192,-158.14817295,0.00017973,2]
[393313261,1762453841202,-164.32088567,0.00017973,2]
[393313262,1762453841211,-500.0,0.00017973,2]
[393313263,1762453841223,-500.0,0.00017973,2]
[393313264,1762453841232,-500.0,0.00017973,2]
[393313265,1762453841242,-519.18307987,0.00017973,2]
[393313266,1762453841251,-465.03295868,0.00017973,2]
[393313267,1762453841260,-324.3529394,0.00017973,2]
[393313268,1762453841269,-500.0,0.00017973,2]
[393313269,1762453841279,-514.51741513,0.00017973,2]
[393313270,1762453841289,-500.0,0.00017973,2]
[393313271,1762453841298,-500.0,0.00017973,2]
[393313272,1762453841307,-500.0,0.00017973,2]
[393313273,1762453841317,-500.0,0.00017973,2]
[393313274,1762453841327,-500.0,0.00017973,2]
[393313275,1762453841337,-500.0,0.00017973,2]
[393313276,1762453841346,-500.49618419,0.00017973,2]
[393313277,1762453841356,-500.0,0.00017973,2]
[393313278,1762453841366,-503.10120576,0.00017973,2]
[393313279,1762453841375,-500.0,0.00017973,2]
[393313280,1762453841384,-500.0,0.00017973,2]
[393313281,1762453841394,-500.59586088,0.00017973,2]
[393313282,1762453841403,-500.27797312,0.00017973,2]
[393313283,1762453841413,-552.80340809,0.00017973,2]
[393313284,1762453841422,-505.37835354,0.00017973,2]
[393313285,1762453841432,-500.0,0.00017973,2]
[393313286,1762453841441,-3024.4758462,0.00017986,2]
[393313287,1762453841450,-440.97162396,0.0001799,2]
[393313288,1762453841459,-440.97162396,0.0001799,2]
[393313289,1762453841469,-440.97162396,0.0001799,2]
[393313290,1762453841479,-151.0,0.00017997,2]
[393313291,1762453841488,-212.916,0.00017999,2]
[393313292,1762453841498,-500.0,0.00017999,2]
[393313293,1762453841507,-500.0,0.00017999,2]
[393313294,1762453841517,-500.0,0.00017999,2]
[393313295,1762453841526,-685.04074978,0.00017999,5]
[393313296,1762453841535,-553.13,0.00017999,2]
[393313297,1762453841544,-553.13,0.00017999,2]
[393313298,1762453841554,-553.13,0.00017999,2]
[393313299,1762453841563,-553.13,0.00017999,2]
[393313300,1762453841572,-553.13,0.00017999,2]
[393313301,1762453841581,-553.13,0.00017999,2]
[393313302,1762453841591,-553.13,0.00017999,2]
[393313303,1762453841600,-553.13,0.00017999,2]
[393313304,1762453841615,-553.13,0.00017999,2]
[393313305,1762453841625,-553.13,0.00017999,2]
[393313306,1762453841635,-553.13,0.00017999,2]
[393313307,1762453841646,-553.13,0.00017999,2]
[393313308,1762453841657,-553.13,0.00017999,2]
[393313309,1762453841666,-553.13,0.00017999,2]
[393313310,1762453841675,-553.13,0.00017999,2]
[393313311,1762453841686,-553.13,0.00017999,2]
[393313312,1762453841696,-553.13,0.00017999,2]
[393313313,1762453841706,-553.13,0.00017999,2]
[393313314,1762453841715,-553.13,0.00017999,2]
[393313315,1762453841724,-553.13,0.00017999,2]
[393313316,1762453841734,-553.13,0.00017999,2]
[393313317,1762453841743,-553.13,0.00017999,2]
[393313318,1762453841752,-553.13,0.00017999,2]
[393313319,1762453841761,-553.18248761,0.00017999,2]
[393313320,1762453841772,-505.64838895,0.00017999,2]
[393313321,1762453841781,-550.62677967,0.00017999,2]
[393313322,1762453841790,-284.48434783,0.00017999,2]
[393313323,1762453841799,-377.94170616,0.00017999,2]
[393313324,1762453841808,-399.17554175,0.00017999,2]
[393313325,1762453841818,-473.15155806,0.00017999,2]
[393313326,1762453841827,-15400.16589434,0.00017999,2]
[393313327,1762453841837,-500.0,0.00017999,2]
[393313328,1762453841846,-500.0,0.00017999,2]
[393313329,1762453841855,-500.0,0.00017999,2]
[393313330,1762453841867,-500.0,0.00017999,2]
[393313331,1762453841878,-500.0,0.00017999,2]
[393313332,1762453841887,-500.0,0.00017999,2]
[393313333,1762453841896,-500.0,0.00017999,2]
[393313334,1762453841906,-500.0,0.00017999,2]
[393313335,1762453841915,-500.0,0.00017999,2]
[393313336,1762453841924,-500.0,0.00017999,2]
[393313337,1762453841934,-500.0,0.00017999,2]
[393313338,1762453841943,-500.0,0.00017999,2]
[393313339,1762453841952,-500.0,0.00017999,2]
[393313340,1762453841961,-500.0,0.00017999,2]
[393313341,1762453841970,-500.0,0.00017999,2]
[393313342,1762453841979,-500.0,0.00017999,2]
[393313343,1762453841988,-500.0,0.00017999,2]
[393313344,1762453842000,-500.0,0.00017999,2]
[393313345,1762453842009,-516.98372178,0.00017999,2]
[393313346,1762453842018,-3676.0,0.00018,2]
[393313347,1762453842028,-1008413.95553467,0.00018,2]
[393313348,1762453842048,-16184.48911962,0.00018,2]
[393313349,1762453842059,-896.10865946,0.00018,2]
[393313350,1762453842070,-919003.77678892,0.00018,2]
[393313354,1762453843338,-889.01689752,0.00018,2]
[393313355,1762453843446,-500.0,0.00018,2]
[393313356,1762453843662,-430.768,0.000179,2]
[393313394,1762453847078,-1013.0,0.000179,2]
[393313410,1762454288714,5869.619058,7.945e-05,2]
[393313411,1762454357589,2000.0,0.00038829,120]
[393313415,1762454484290,881.02,0.00013699,2]
[393313417,1762454685622,150.0,0.00016465,120]
[393313418,1762454769506,152.74,0.00038831,30]
[393313424,1762455031621,-452.69433313,0.0001633,2]
[393313425,1762455031635,-379.82566687,0.0001633,2]
[393313426,1762455031646,-250.0,0.00016353,2]
[393313427,1762455031655,-620.55303327,0.00016376,2]
[393313428,1762455031667,-4064.31696673,0.00016376,2]
[393313429,1762455031677,-250.0,0.00016431,2]
[393313430,1762455031686,-300.0,0.00016439,2]
[393313431,1762455031696,-195.0,0.00016439,2]
[393313432,1762455031705,-300.0,0.00016462,2]
[393313433,1762455031714,-300.0,0.00016462,2]
[393313434,1762455031724,-1200.0,0.00016462,2]
[393313435,1762455031733,-300.0,0.00016463,2]
[393313436,1762455031743,-300.0,0.00016463,2]
[393313437,1762455031753,-300.0,0.00016463,2]
[393313438,1762455031762,-300.0,0.00016464,2]
[393313439,1762455031771,-150.0,0.00016465,2]
[393313440,1762455031781,-192.61,0.00016466,2]
[393313442,1762455031790,-1200.0,0.00016648,2]
[393313443,1762455031800,-150.0,0.00016649,2]
[393313445,1762455031809,-500.0,0.000167,2]
[393313448,1762455031822,-500.0,0.000167,2]
[393313450,1762455031831,-500.0,0.000167,2]
[393313452,1762455031841,-500.0,0.000167,2]
[393313453,1762455031851,-500.0,0.000167,2]
[393313455,1762455031860,-500.0,0.000167,2]
[393313457,1762455031869,-300.0,0.00016783,2]
[393313459,1762455031878,-4692.29,0.00016785,2]
[393313461,1762455031888,-55783.64,0.00016785,2]
[393313463,1762455031897,-500.0,0.000168,2]
[393313464,1762455031906,-500.0,0.000168,2]
[393313466,1762455031916,-500.0,0.000168,2]
[393313468,1762455031926,-166.68,0.00016895,2]
[393313470,1762455031935,-1098.32,0.00016925,2]
[393313472,1762455031945,-274.58,0.00017076,2]
[393313474,1762455031954,-16045.46,0.00017077,2]
[393313476,1762455031964,-3865.0,0.00017144,2]
[393313478,1762455031976,-500.0,0.00017233,2]
[393313480,1762455031985,-1000.0,0.00017248,2]
[393313482,1762455031994,-1000.0,0.00017248,2]
[393313484,1762455032003,-1000.0,0.00017248,2]
[393313486,1762455032014,-1000.0,0.00017248,2]
[393313488,1762455032027,-1000.0,0.00017248,2]
[393313490,1762455032037,-251.28,0.00017265,2]
[393313492,1762455032049,-1000.0,0.00017348,2]
[393313494,1762455032059,-1000.0,0.00017348,2]
[393313496,1762455032069,-873.08240891,0.00017348,2]
[393313498,1762455032079,-274.58,0.0001735,2]
[393313500,1762455032089,-192.61,0.00017381,2]
[393313502,1762455032099,-329.46,0.0001746,2]
[393313504,1762455032108,-477.87911524,0.00017566,2]
[393313505,1762455032118,-274.58,0.00017624,2]
[393313507,1762455032127,-176.91,0.00017634,2]
[393313509,1762455032137,-220.0938624,0.00017671,2]
[393313511,1762455032147,-865.34737402,0.00017681,2]
[393313513,1762455032157,-411.36438321,0.00017699,2]
[393313515,1762455032166,-178.19361803,0.00017699,2]
[393313517,1762455032176,-5000.0,0.000177,2]
[393313519,1762455032186,-188.41438109,0.000177,2]
[393313521,1762455032195,-2500.0,0.000177,2]
[393313523,1762455032205,-184.51113818,0.000177,2]
[393313525,1762455032218,-12908.4014,0.000177,2]
[393313527,1762455032227,-150.0,0.00017706,2]
[393313529,1762455032237,-150.0,0.00017706,2]
[393313531,1762455032247,-151.26,0.00017706,2]
[393313533,1762455032256,-150.0,0.00017706,2]
[393313535,1762455032266,-554.0,0.00017726,2]
[393313537,1762455032276,-9999.99,0.00017728,2]
[393313539,1762455032286,-150.99,0.00017728,2]
[393313541,1762455032295,-299.99,0.00017728,4]
[393313542,1762455032304,-9999.99,0.00017728,2]
[393313543,1762455032313,-19999.99,0.00017728,2]
[393313544,1762455032323,-2179.75,0.00017728,2]
[393313545,1762455032332,-6203.01796957,0.00017728,2]
[393313546,1762455032345,-3509.3643089,0.00017728,2]
[393313547,1762455032360,-3226.92772153,0.00017728,2]
[393313548,1762455032369,-549.16,0.00017747,2]
[393313549,1762455032379,-549.16,0.00017747,2]
[393313550,1762455032389,-1537.46098494,0.00017796,2]
[393313551,1762455032398,-140.09686378,0.00017796,2]
[393313552,1762455032412,-652.58084798,0.00017796,2]
[393313553,1762455032424,-707.32228824,0.00017796,2]
[393313555,1762455032434,-313.2181937,0.00017796,2]
[393313557,1762455032446,-922.13592424,0.00017796,2]
[393313559,1762455032457,-264.64588206,0.00017796,2]
[393313561,1762455032467,-701.31080728,0.00017796,2]
[393313563,1762455032477,-1500.0,0.00017796,2]
[393313565,1762455032486,-151.0,0.00017797,2]
[393313567,1762455032495,-500.0,0.00017799,2]
[393313569,1762455032509,-500.0,0.00017799,2]
[393313571,1762455032530,-500.0,0.00017799,2]
[393313573,1762455032542,-500.0,0.00017799,2]
[393313575,1762455032551,-500.0,0.00017799,2]
[393313577,1762455032560,-500.0,0.00017799,2]
[393313579,1762455032570,-500.0,0.00017799,2]
[393313581,1762455032579,-500.0,0.00017799,2]
[393313583,1762455032589,-41526.25320247,0.000178,2]
[393313585,1762455032601,-172709.36955608,0.000178,2]
[393313587,1762455032611,-517.52587944,0.000178,2]
[393313590,1762455032625,-10503.90240885,0.000178,2]
[393313597,1762455037416,-175.33884353,0.00016782,2]
[393313598,1762455037425,-500.0,0.00016782,2]
[393313599,1762455037435,-161.56551767,0.00016782,2]
[393313600,1762455037445,-500.0,0.00016782,2]
[393313601,1762455037454,-173.0956388,0.00016782,2]
[393313602,1762455037469,-351.26395364,0.00016782,2]
[393313603,1762455037478,-500.0,0.00016782,2]
[393313604,1762455037487,-500.0,0.00016782,2]
[393313605,1762455037497,-500.0,0.00016782,2]
[393313606,1762455037506,-500.0,0.00016782,2]
[393313607,1762455037516,-552.10347978,0.00016782,2]
[393313608,1762455037525,-500.0,0.00016782,2]
[393313609,1762455037535,-500.0,0.00016782,2]
[393313610,1762455037544,-500.0,0.00016782,2]
[393313611,1762455037554,-500.0,0.00016782,2]
[393313612,1762455037563,-500.0,0.00016782,2]
[393313613,1762455037573,-500.0,0.00016782,2]
[393313615,1762455037582,-500.0,0.00016782,2]
[393313616,1762455037592,-500.0,0.00016782,2]
[393313618,1762455037602,-500.0,0.00016782,2]
[393313621,1762455037611,-490.8160006,0.00016782,2]
[393313623,1762455037621,-500.0,0.00016782,2]
[393313625,1762455037630,-500.0,0.00016782,2]
[393313627,1762455037640,-500.0,0.00016782,2]
[393313629,1762455037649,-500.0,0.00016782,2]
[393313631,1762455037657,-500.0,0.00016782,2]
[393313633,1762455037667,-500.0,0.00016782,2]
[393313635,1762455037676,-500.0,0.00016782,2]
[393313637,1762455037685,-87.37042021,0.000178,2]
[393313639,1762455037696,-36191.30059175,0.000178,2]
[393313641,1762455037708,-34838.12375623,0.000178,2]
[393313643,1762455037719,-1471.0953936,0.000178,2]
[393313646,1762455037730,-402.6022,0.000178,2]
[393313648,1762455037741,-971.60856542,0.000178,2]
[393313650,1762455037752,-3050.082,0.000178,2]
[393313652,1762455037763,-65447.61285486,0.000178,2]
[393313655,1762455037778,-9285.64,0.000178,2]
[393313787,1762455039575,-1391.8514105,0.000178,2]
[393313788,1762455039588,-968.21208012,0.000178,2]
[393313789,1762455039628,-40637.44968047,0.000178,2]
[393313790,1762455039639,-586.5761,0.000178,2]
[393313791,1762455039650,-21134.59451262,0.000178,2]
[393313792,1762455039661,-180.027,0.000178,2]
[393313793,1762455039671,-1889.557,0.000178,2]
[393313794,1762455039682,-188.41438107,0.000178,2]
[393313795,1762455039692,-250.0,0.000178,2]
[393313796,1762455039702,-250.0,0.000178,2]
[393313797,1762455039712,-250.0,0.000178,2]
[393313798,1762455039722,-250.0,0.000178,2]
[393313799,1762455039732,-250.0,0.000178,2]
[393313800,1762455039742,-250.0,0.000178,2]
[393313801,1762455039751,-250.0,0.000178,2]
[393313802,1762455039760,-250.0,0.000178,2]
[393313803,1762455039770,-250.0,0.000178,2]
[393313804,1762455039780,-250.0,0.000178,2]
[393313805,1762455039790,-250.0,0.000178,2]
[393313806,1762455039799,-250.0,0.000178,2]
[393313807,1762455039809,-250.0,0.000178,2]
[393313808,1762455039819,-250.0,0.000178,2]
[393313809,1762455039829,-250.0,0.000178,2]
[393313810,1762455039838,-250.0,0.000178,2]
[393313811,1762455039848,-250.0,0.000178,2]
[393313812,1762455039857,-250.0,0.000178,2]
[393313813,1762455039867,-250.0,0.000178,2]
[393313814,1762455039877,-250.0,0.000178,2]
[393313815,1762455039886,-250.0,0.000178,2]
[393313816,1762455039896,-250.0,0.000178,2]
[393313817,1762455039907,-250.0,0.000178,2]
[393313818,1762455039916,-250.0,0.000178,2]
[393313819,1762455039925,-250.0,0.000178,2]
[393313820,1762455039935,-250.0,0.000178,2]
[393313821,1762455039944,-250.0,0.000178,2]
[393313822,1762455039953,-269.0,0.000178,2]
[393313823,1762455039963,-3865.0,0.00017806,2]
[393313824,1762455039973,-3865.0,0.0001788,2]
[393313825,1762455039983,-1500.0,0.00017896,2]
[393313826,1762455039993,-1000.0,0.00017896,2]
[393313827,1762455040003,-274.58,0.00017898,2]
[393313828,1762455040013,-500.0,0.00017899,2]
[393313829,1762455040023,-500.0,0.00017899,2]
[393313830,1762455040033,-500.0,0.00017899,2]
[393313831,1762455040043,-500.0,0.00017899,2]
[393313832,1762455040055,-550.62677967,0.00017899,2]
[393313833,1762455040064,-505.64838895,0.00017899,2]
[393313834,1762455040074,-500.0,0.00017899,2]
[393313835,1762455040083,-500.0,0.00017899,2]
[393313836,1762455040094,-377.94170616,0.00017899,2]
[393313837,1762455040103,-183.69568692,0.00017899,2]
[393313838,1762455040112,-473.15155806,0.00017899,2]
[393313839,1762455040122,-6910.36395577,0.000179,2]
[393313840,1762455040132,-188.41438107,0.000179,2]
[393313841,1762455040141,-184.51113818,0.000179,2]
[393313842,1762455040151,-3243.15393927,0.000179,2]
[393313843,1762455040161,-150.81255791,0.000179,3]
[393313844,1762455040170,-174.36793026,0.000179,2]
[393313845,1762455040180,-500.0,0.00017906,2]
[393313846,1762455040190,-500.0,0.00017906,2]
[393313847,1762455040200,-500.0,0.00017906,2]
[393313848,1762455040209,-150.0,0.00017906,2]
[393313849,1762455040219,-150.0,0.00017906,2]
[393313850,1762455040229,-162.44257324,0.00017906,2]
[393313851,1762455040239,-150.0,0.00017906,2]
[393313852,1762455040249,-150.0,0.00017906,2]
[393313853,1762455040258,-150.0,0.00017906,2]
[393313854,1762455040268,-150.0,0.00017906,2]
[393313855,1762455040278,-150.0,0.00017906,2]
[393313856,1762455040287,-150.0,0.00017906,2]
[393313857,1762455040297,-150.0,0.00017917,2]
[393313858,1762455040307,-500.0,0.00017917,2]
[393313859,1762455040316,-21391.82954433,0.00017946,2]
[393313860,1762455040326,-608.492,0.00017951,2]
[393313861,1762455040336,-3423.0,0.00017951,2]
[393313862,1762455040346,-574.0,0.00017951,2]
[393313863,1762455040356,-1315.0,0.00017951,2]
[393313864,1762455040365,-1596.0,0.00017951,2]
[393313866,1762455040375,-820.0,0.00017951,2]
[393313867,1762455040385,-1188.0,0.00017951,2]
[393313868,1762455040394,-905.0,0.00017951,2]
[393313869,1762455040403,-1273.0,0.00017951,2]
[393313870,1762455040414,-812.0,0.00017951,2]
[393313871,1762455040423,-6475.0,0.00017951,2]
[393313872,1762455040433,-2141.0,0.00017951,2]
[393313873,1762455040443,-6673.309,0.00017951,2]
[393313874,1762455040452,-559.0,0.00017951,2]
[393313875,1762455040461,-300.0,0.00017963,2]
[393313876,1762455040470,-195.0,0.00017963,2]
[393313877,1762455040480,-250.0,0.00017963,2]
[393313878,1762455040489,-250.0,0.00017963,2]
[393313879,1762455040498,-500.0,0.00017972,2]
[393313880,1762455040508,-13633.0,0.00017973,2]
[393313881,1762455040518,-500.0,0.00017973,2]
[393313882,1762455040527,-500.0,0.00017973,2]
[393313883,1762455040536,-500.0,0.00017973,2]
[393313884,1762455040546,-500.0,0.00017973,2]
[393313885,1762455040555,-500.22397222,0.00017973,2]
[393313886,1762455040564,-500.0,0.00017973,2]
[393313887,1762455040573,-500.0,0.00017973,2]
[393313888,1762455040582,-500.29122171,0.00017973,2]
[393313889,1762455040592,-324.3529394,0.00017973,2]
[393313890,1762455040601,-177.37183527,0.00017973,2]
[393313891,1762455040610,-500.19258661,0.00017973,2]
[393313892,1762455040620,-500.0,0.00017973,2]
[393313893,1762455040629,-500.0,0.00017973,2]
[393313894,1762455040638,-500.0,0.00017973,2]